bitfinex-derivatives/quotes_ETHF0:USTF0_20250428
["timestamp","ask_amount","ask_price","bid_price","bid_amount"]
[1745861284048,1.13525,1761.1,1761.0,2.89017]
[1745861284242,1.13532,1761.0,1760.9,1.13534]
[1745861284439,5.19976,1761.0,1760.9,1.13535]
[1745861284840,6.95626,1761.0,1760.9,1.13535]
[1745861285341,1.13543,1760.9,1760.8,1.1354]
[1745861285543,2.88943,1760.9,1760.8,1.1354]
[1745861285740,1.754,1760.9,1760.8,1.1354]
[1745861286242,1.754,1760.9,1760.8,2.8444]
[1745861286450,4.0644,1761.0,1760.9,1.13538]
[1745861286745,5.19972,1761.0,1760.9,2.84438]
[1745861288551,1.13544,1760.9,1760.8,1.13544]
[1745861288847,1.13564,1760.5,1760.4,1.93956]
[1745861289052,4.34337,1760.6,1760.5,1.13564]
[1745861289350,4.34337,1760.6,1760.5,2.75134]
[1745861289542,4.34337,1760.6,1760.5,1.6157]
[1745861289742,1.13564,1760.5,1760.4,45.73768]
[1745861289945,3.69854,1760.5,1760.4,44.602]
[1745861290144,3.69854,1760.5,1760.4,40.8]
[1745861290548,1.13583,1760.3,1760.1,11.56889731]
[1745861290750,1.13583,1760.3,1760.2,1.13582]
[1745861290952,1.13583,1760.3,1760.2,41.93582]
[1745861291248,1.13583,1760.3,1760.2,40.8]
[1745861291641,1.13583,1760.3,1760.2,41.93583]
[1745861294152,1.13583,1760.3,1760.2,40.8]
[1745861294352,1.13583,1760.2,1760.1,6.75754]
[1745861294647,4.34363,1760.2,1760.1,6.75754]
[1745861294841,4.34363,1760.2,1760.1,1.13584]
[1745861295650,3.2078,1760.2,1760.1,1.13584]
[1745861295852,3.2078,1760.2,1760.1,2.82804]
[1745861296552,4.34363,1760.2,1760.1,2.82804]
[1745861297447,3.2078,1760.2,1760.1,2.82804]
[1745861298155,4.34363,1760.2,1760.1,2.82804]
[1745861298958,1.1359,1760.1,1760.0,45.73793]
[1745861299156,1.9379,1760.1,1760.0,47.36403]
[1745861300158,0.802,1760.1,1760.0,43.56203]
[1745861300350,1.9379,1760.1,1760.0,43.56203]
[1745861301464,0.802,1760.1,1760.0,43.56203]
[1745861301667,4.34369,1760.2,1760.1,1.1359]
[1745861301958,4.34363,1760.2,1760.1,2.9034]
[1745861307661,3.2078,1760.2,1760.1,2.9034]
[1745861307852,1.13575,1760.4,1760.3,1.13571]
[1745861308056,1.13575,1760.4,1760.3,2.77981]
[1745861308558,3.60825,1760.4,1760.3,2.77981]
[1745861308866,1.13577,1760.3,1760.2,1.13578]
[1745861309061,1.13583,1760.2,1760.1,6.76394]
[1745861309560,2.80983,1760.2,1760.1,2.77994]
[1745861310062,2.80983,1760.2,1760.1,2.78]
[1745861310256,2.80983,1760.2,1760.1,1.6441]
[1745861310660,1.13596,1760.0,1759.9,1.94153]
[1745861310866,4.34376,1760.0,1759.9,3.71263]
[1745861311057,4.34376,1760.0,1759.9,1.13603]
[1745861311257,1.13603,1759.9,1759.8,45.92006]
[1745861311458,1.13603,1759.9,1759.8,47.69116]
[1745861311659,1.13603,1759.9,1759.8,2.90716]
[1745861311860,1.13609,1759.8,1759.7,1.13613]
[1745861312062,4.34389,1759.8,1759.7,1.13613]
[1745861312367,9.24e-06,1760.2,1760.1,1.1359]
[1745861312565,4.34325,1760.8,1760.7,1.13551]
[1745861312764,4.34324,1760.8,1760.7,1.13551]
[1745861313170,6.07264,1760.8,1760.7,1.13551]
[1745861313762,4.9372,1760.8,1760.7,1.13551]
[1745861314364,6.07264,1760.8,1760.7,1.13551]
[1745861314566,4.9372,1760.8,1760.7,1.13551]
[1745861315371,6.07264,1760.8,1760.7,1.13551]
[1745861315876,4.9372,1760.8,1760.7,1.13551]
[1745861316582,6.07264,1760.8,1760.7,1.13551]
[1745861316878,1.13553,1760.7,1760.6,1.13551]
[1745861317078,1.1356,1760.6,1760.5,1.13557]
[1745861317281,4.3434,1760.6,1760.5,1.13557]
[1745861317471,4.8562,1760.6,1760.5,1.13557]
[1745861320087,5.99177,1760.6,1760.5,1.13557]
[1745861320285,4.8562,1760.6,1760.5,1.13557]
[1745861320680,5.99177,1760.6,1760.5,1.13557]
[1745861320888,1.13564,1760.5,1760.4,1.6649]
[1745861321182,1.13564,1760.5,1760.0,0.8626]
[1745861321183,5.37931,1760.5,1760.0,0.8626]
[1745861321479,1.13586,1760.2,1760.1,1.13583]
[1745861321883,2.86016,1760.2,1760.1,1.13583]
[1745861322988,1.7243,1760.2,1760.1,1.13583]
[1745861323287,1.7243,1760.2,1760.1,2.82043]
[1745861323476,1.13583,1760.2,1760.1,2.82043]
[1745861323677,5.18912,1760.3,1760.2,1.13583]
[1745861323877,5.18912,1760.3,1760.2,2.82043]
[1745861324080,8.0076,1760.5,1760.4,1.1357]
[1745861324492,9.14328,1760.5,1760.4,1.1357]
[1745861325579,5.15928,1760.5,1760.4,1.1357]
[1745861326087,1.1357,1760.4,1760.3,2.82037]
[1745861326289,1.13582,1760.3,1760.2,1.1358]
[1745861326489,1.13582,1760.3,1760.2,2.7905]
[1745861327387,4.34362,1760.3,1760.2,2.7905]
[1745861329092,4.34362,1760.3,1760.2,1.6547]
[1745861329293,1.1359,1760.1,1760.0,2.74891]
[1745861330394,2.0176,1760.1,1760.0,2.74891]
[1745861331195,5.2254,1760.1,1760.0,1.613]
[1745861331393,1.13596,1760.0,1759.9,1.13599]
[1745861331692,1.13603,1759.9,1759.8,1.7352]
[1745861331891,4.34383,1759.9,1759.8,1.7352]
[1745861332289,4.34383,1759.9,1759.8,2.87129]
[1745861332686,1.13603,1759.9,1759.8,2.87129]
[1745861332993,1.13603,1759.9,1759.8,1.7352]
[1745861333790,1.13603,1759.9,1759.8,2.87129]
[1745861334195,4.34383,1759.9,1759.8,2.87129]
[1745861334396,4.34383,1759.9,1759.8,1.7352]
[1745861338290,1.13615,1759.7,1759.6,1.13617]
[1745861338491,1.13615,1759.7,1759.6,2.77767]
[1745861338691,1.13615,1759.7,1759.6,2.77772]
[1745861340588,1.13615,1759.7,1759.6,1.6415]
[1745861340792,1.13615,1759.7,1759.6,2.77772]
[1745861341103,4.34395,1759.7,1759.6,1.6415]
[1745861342302,3.2078,1759.7,1759.3,0.8836]
[1745861342502,1.13628,1759.5,1759.4,1.6384]
[1745861343198,4.34408,1759.5,1759.4,1.6384]
[1745861344695,6.02598,1759.5,1759.4,1.6384]
[1745861345097,6.90748,1759.5,1759.4,1.6384]
[1745861347695,5.7712,1759.5,1759.0,0.8827]
[1745861347899,1.13648,1759.2,1759.1,1.6687]
[1745861348505,3.63668,1759.2,1759.1,1.6687]
[1745861348908,1.13654,1759.1,1759.0,0.8321]
[1745861349107,4.34434,1759.1,1759.0,2.5008]
[1745861349407,5.96654,1759.1,1759.0,2.5008]
[1745861350706,4.34434,1759.1,1759.0,2.5008]
[1745861352410,4.34434,1759.1,1759.0,3.63741]
[1745861353005,4.34434,1759.1,1759.0,2.5008]
[1745861353209,4.34434,1759.1,1759.0,7.43941]
[1745861353404,4.34434,1759.1,1759.0,6.3028]
[1745861353603,2.84188,1758.8,1758.2,7.1948]
[1745861353809,4.3446,1758.7,1758.6,1.7321]
[1745861354003,4.3446,1758.7,1758.6,42.5321]
[1745861354216,4.3446,1758.7,1758.6,1.7321]
[1745861355406,1.13687,1758.6,1758.5,3.802]
[1745861355607,1.13687,1758.6,1758.5,5.5341]
[1745861356711,1.13687,1758.6,1758.5,6.67103]
[1745861357016,1.13687,1758.6,1758.5,5.5341]
[1745861358714,1.13687,1758.6,1758.5,6.67103]
[1745861359019,1.13687,1758.6,1758.5,5.5341]
[1745861359617,3.70767,1758.6,1758.5,5.5341]
[1745861360218,3.70767,1758.6,1758.5,1.7321]
[1745861364523,1.13693,1758.5,1758.4,2.5439]
[1745861364718,6.07053,1758.5,1758.4,2.5439]
[1745861365113,6.07053,1758.5,1758.4,6.3459]
[1745861365716,6.07053,1758.5,1758.4,3.802]
[1745861366112,1.13699,1758.4,1758.3,2.4545]
[1745861367414,1.13699,1758.4,1758.3,3.59156]
[1745861368226,1.13699,1758.4,1758.3,7.39356]
[1745861369319,4.34478,1758.5,1758.4,1.13699]
[1745861369620,4.34478,1758.5,1758.4,3.59259]
[1745861370213,4.34478,1758.5,1758.4,7.39459]
[1745861373528,4.34478,1758.5,1758.4,6.2576]
[1745861373825,4.34478,1758.5,1758.4,7.39459]
[1745861374125,4.34478,1758.5,1758.4,6.2576]
[1745861374321,4.34478,1758.5,1758.4,3.802]
[1745861374526,6.80948,1758.5,1758.4,3.802]
[1745861375126,1.13699,1758.4,1758.3,2.88904]
[1745861375322,1.13699,1758.4,1758.3,1.752]
[1745861375525,2.75169,1758.4,1758.3,1.752]
[1745861375915,3.55399,1758.4,1758.3,1.752]
[1745861376317,4.55299,1758.4,1758.3,1.752]
[1745861376522,1.13712,1758.2,1758.1,1.13714]
[1745861377926,1.13712,1758.2,1758.1,2.87464]
[1745861380526,1.13719,1758.1,1758.0,4.6025]
[1745861380723,6.04379,1758.1,1758.0,4.6025]
[1745861380923,6.04379,1758.1,1758.0,6.332]
[1745861381623,6.04379,1758.1,1758.0,5.5315]
[1745861381928,6.85009,1758.1,1758.0,3.802]
[1745861383719,6.85009,1758.1,1758.0,5.5477]
[1745861383922,1.13732,1757.9,1757.8,0.8744]
[1745861384127,1.13732,1757.9,1757.8,2.88308]
[1745861385221,1.13732,1757.9,1757.8,6.68508]
[1745861385426,4.34512,1757.9,1757.8,6.68508]
[1745861386028,4.34512,1757.9,1757.8,5.5477]
[1745861386435,6.04022,1757.9,1757.8,5.5477]
[1745861387234,6.04022,1757.9,1757.8,6.68508]
[1745861387435,3.2078,1757.9,1757.8,6.68508]
[1745861387631,1.9622,1758.0,1757.9,1.13732]
[1745861387830,1.9622,1758.0,1757.9,2.76442]
[1745861388438,1.9622,1758.0,1757.9,6.56642]
[1745861388638,1.9622,1758.0,1757.9,5.4291]
[1745861389833,3.7162,1758.0,1757.9,5.4291]
[1745861390930,4.7152,1758.0,1757.9,5.4291]
[1745861391835,4.7152,1758.0,1757.9,6.56642]
[1745861392035,2.1363,1758.0,1757.9,6.56642]
[1745861392234,0.999,1758.0,1757.9,6.56642]
[1745861392638,2.13625,1758.0,1757.9,6.56642]
[1745861395045,2.13625,1758.0,1757.9,5.4291]
[1745861395450,3.77105,1758.0,1757.9,5.4291]
[1745861395837,3.77105,1758.0,1757.9,3.802]
[1745861397750,3.77105,1758.0,1757.9,5.5208]
[1745861400244,3.77105,1758.0,1757.9,3.802]
[1745861401749,1.13738,1757.8,1757.7,0.8022]
[1745861401949,1.13745,1757.7,1757.6,3.61899]
[1745861402149,1.13745,1757.7,1757.6,2.4815]
[1745861402452,1.13745,1757.7,1757.6,3.61901]
[1745861403352,1.13745,1757.7,1757.6,1.6541]
[1745861403548,2.86505,1757.7,1757.6,1.6541]
[1745861405555,3.86405,1757.7,1757.6,1.6541]
[1745861407253,2.13645,1757.7,1757.6,2.79161]
[1745861408252,0.999,1757.7,1757.6,7.79161]
[1745861408453,3.2078,1758.0,1757.9,1.13732]
[1745861408754,0.8242,1758.3,1757.9,3.2078]
[1745861408949,1.13725,1758.1,1758.0,2.83692]
[1745861409150,1.13718,1758.2,1758.1,1.13715]
[1745861409357,1.13718,1758.2,1758.1,1.97415]
[1745861410157,1.13718,1758.2,1758.1,5.18195]
[1745861410452,1.13702,1758.4,1758.3,1.13699]
[1745861410648,1.13697,1758.5,1758.4,1.13694]
[1745861410856,1.13696,1758.5,1758.4,1.13694]
[1745861411061,1.13696,1758.5,1758.4,2.84754]
[1745861412652,5.12493,1758.6,1758.5,1.13693]
[1745861412954,1.13693,1758.6,1758.5,2.84753]
[1745861413156,1.13693,1758.6,1758.5,6.64953]
[1745861413655,1.13693,1758.6,1758.5,5.5126]
[1745861414048,1.13706,1758.3,1758.2,0.8337]
[1745861414247,1.13706,1758.3,1758.2,2.90972]
[1745861415159,1.13706,1758.3,1758.2,6.71172]
[1745861415455,1.13706,1758.3,1758.2,5.5746]
[1745861416357,2.87396,1758.3,1758.2,5.5746]
[1745861417154,2.87396,1758.3,1758.2,1.7726]
[1745861417359,1.13732,1757.9,1757.8,0.812]
[1745861417562,1.13738,1757.8,1757.7,2.85094]
[1745861417857,1.13738,1757.8,1757.7,1.7135]
[1745861418151,1.13738,1757.8,1757.7,5.5155]
[1745861418455,4.34518,1757.8,1757.7,3.802]
[1745861418653,9.34518,1757.8,1757.7,3.3792]
[1745861419354,1.13751,1757.6,1757.5,1.7135]
[1745861420158,1.13751,1757.6,1757.5,5.5155]
[1745861420356,4.34531,1757.6,1757.5,3.802]
[1745861420559,5.21981,1757.6,1757.5,3.802]
[1745861421153,1.13758,1757.5,1757.4,2.85394]
[1745861421357,1.13758,1757.5,1757.4,1.7163]
[1745861422154,1.13758,1757.5,1757.4,5.5183]
[1745861423359,1.13758,1757.5,1757.4,6.65594]
[1745861423864,1.13758,1757.5,1757.4,5.5183]
[1745861425067,2.79418,1757.5,1757.4,5.5183]
[1745861425364,2.79418,1757.5,1757.4,6.65594]
[1745861425560,3.2078,1757.8,1757.4,5.5183]
[1745861425767,1.13748,1757.7,1757.6,1.13747]
[1745861425964,1.13748,1757.7,1757.6,2.73777]
[1745861426161,1.13744,1757.8,1757.7,1.13743]
[1745861426370,1.13735,1757.9,1757.8,1.13734]
[1745861426560,1.13729,1758.0,1757.9,1.13732]
[1745861426866,7.1938,1758.4,1757.9,6.05105]
[1745861427165,1.13719,1758.1,1758.0,2.7375]
[1745861427366,1.13717,1758.2,1758.1,1.13715]
[1745861427565,1.13717,1758.2,1758.1,2.73745]
[1745861427769,1.13717,1758.2,1758.1,2.73749]
[1745861427963,4.9633,1758.4,1758.1,1.6003]
[1745861428163,4.34486,1758.4,1758.3,1.13706]
[1745861428360,1.13706,1758.3,1758.2,2.73738]
[1745861428561,1.13702,1758.4,1758.3,1.13706]
[1745861429171,1.13706,1758.3,1758.2,6.77007]
[1745861429467,1.13706,1758.3,1758.2,3.56227]
[1745861429662,1.13706,1758.3,1758.2,1.6003]
[1745861432166,1.13719,1758.1,1758.0,3.2078]
[1745861432371,1.13732,1757.9,1757.8,1.6874]
[1745861432568,1.13732,1757.9,1757.8,2.82478]
[1745861432870,1.1373,1758.0,1757.9,1.13728]
[1745861433071,1.1373,1758.0,1757.9,2.82468]
[1745861433570,1.1373,1758.0,1757.9,1.6874]
[1745861434064,1.1373,1758.0,1757.9,2.82472]
[1745861434261,1.1373,1758.0,1757.9,3.802]
[1745861434860,2.8831,1758.0,1757.9,3.802]
[1745861435169,1.13732,1757.9,1757.8,1.6159]
[1745861435571,1.13751,1757.6,1757.5,0.8271]
[1745861435765,1.13751,1757.6,1757.5,2.443]
[1745861436170,1.13751,1757.6,1757.5,6.245]
[1745861436470,1.13751,1757.6,1757.5,7.38258]
[1745861436670,2.88328,1757.7,1757.6,1.13751]
[1745861436872,1.13748,1757.7,1757.6,2.75341]
[1745861437267,1.13748,1757.7,1757.6,5.96121]
[1745861438277,1.13748,1757.7,1757.6,2.75341]
[1745861438471,1.13748,1757.7,1757.6,5.96121]
[1745861439161,1.13748,1757.7,1757.6,2.75341]
[1745861439667,1.13751,1757.6,1757.5,3.802]
[1745861439873,2.73911,1757.6,1757.5,3.802]
[1745861440867,7.73911,1757.6,1757.5,3.802]
[1745861441271,1.13771,1757.3,1757.2,2.86336]
[1745861441669,1.13765,1757.5,1757.4,1.13761]
[1745861442072,1.13765,1757.5,1757.4,4.93961]
[1745861442273,1.13765,1757.5,1757.4,6.61141]
[1745861442681,1.13765,1757.5,1757.4,5.4738]
[1745861444469,1.13765,1757.5,1757.4,3.802]
[1745861445181,1.13764,1757.4,1757.3,2.5954]
[1745861445476,1.13764,1757.4,1757.3,3.73311]
[1745861445778,1.13763,1757.5,1757.4,1.13764]
[1745861445969,1.13763,1757.5,1757.4,2.89284]
[1745861446978,9.5757,1757.8,1757.4,1.7552]
[1745861447276,1.13751,1757.6,1757.5,3.59323]
[1745861447677,1.13751,1757.6,1757.5,3.59326]
[1745861447879,1.13751,1757.6,1757.5,1.6144]
[1745861449775,1.13751,1757.6,1757.5,2.75198]
[1745861450170,1.13751,1757.6,1757.5,1.6144]
[1745861451175,2.80501,1757.6,1757.5,1.6144]
[1745861453678,1.13751,1757.6,1757.5,1.6144]
[1745861454382,1.13749,1757.7,1757.5,6.6144]
[1745861454574,1.13745,1757.7,1757.6,4.0088]
[1745861454881,1.13743,1757.8,1757.7,1.13742]
[1745861455080,1.13743,1757.8,1757.7,2.4461]
[1745861455873,1.13743,1757.8,1757.7,3.58355]
[1745861456073,1.13743,1757.8,1757.7,2.4461]
[1745861456281,1.13361918,1757.8,1757.7,2.4461]
[1745861458081,2.74231918,1757.8,1757.7,2.4461]
[1745861458385,1.13776,1757.3,1757.2,4.34553]
[1745861458680,1.13768,1757.4,1757.3,1.13766]
[1745861459071,1.13771,1757.3,1757.2,4.34552]
[1745861459779,1.13771,1757.3,1757.2,5.94702]
[1745861460285,1.13771,1757.3,1757.2,1.6015]
[1745861460488,1.1377,1757.4,1757.3,1.13767]
[1745861460785,1.1377,1757.4,1757.3,2.73917]
[1745861461384,1.1377,1757.4,1757.3,1.6015]
[1745861461777,1.1377,1757.4,1757.3,2.73921]
[1745861463386,1.1377,1757.4,1757.3,1.6015]
[1745861463578,1.13771,1757.3,1757.2,3.2078]
[1745861463774,4.53458,1757.5,1757.1,0.853]
[1745861463775,8.89618,1757.4,1757.1,0.853]
[1745861463980,1.13777,1757.2,1757.1,1.99083]
[1745861465084,1.13774,1757.3,1757.2,1.13774]
[1745861465280,1.13774,1757.3,1757.2,2.88694]
[1745861465480,1.13774,1757.3,1757.2,1.7492]
[1745861465684,1.13774,1757.3,1757.2,2.88697]
[1745861465877,1.13774,1757.3,1757.2,3.2078]
[1745861466080,1.13774,1757.3,1757.2,6.09477]
[1745861467483,1.13774,1757.3,1757.2,4.957]
[1745861467886,1.13771,1757.3,1757.2,6.09477]
[1745861468182,1.13762,1757.5,1757.4,1.13758]
[1745861468885,1.13762,1757.5,1757.4,2.88448]
[1745861469090,1.13762,1757.5,1757.4,1.7469]
[1745861469281,2.84402,1757.5,1757.2,4.34554]
[1745861469482,1.13777,1757.2,1757.1,3.6855]
[1745861469680,7.45662,1757.4,1757.0,3.2078]
[1745861469681,1.13784,1757.1,1757.0,3.2078]
[1745861469986,1.1379,1757.0,1756.9,3.76624]
[1745861470193,1.1379,1757.0,1756.9,2.6283]
[1745861470380,2.906,1757.0,1756.9,1.7469]
[1745861471791,2.906,1757.0,1756.9,2.88487]
[1745861472088,2.906,1757.0,1756.9,1.7469]
[1745861476191,2.906,1757.0,1756.9,2.88487]
[1745861476497,1.98669,1757.1,1757.0,1.1379]
[1745861476791,1.98669,1757.1,1757.0,2.9023]
[1745861477088,3.66219,1757.1,1757.0,1.7644]
[1745861481187,3.66219,1757.1,1756.8,4.0337]
[1745861481188,1.1379,1757.0,1756.9,1.13794]
[1745861481388,1.13797,1756.9,1756.8,3.5883]
[1745861481588,1.13797,1756.9,1756.8,6.7961]
[1745861481791,1.13797,1756.9,1756.8,3.5883]
[1745861481987,1.13797,1756.9,1756.8,2.4503]
[1745861482192,1.13797,1756.9,1756.8,3.58833]
[1745861482383,2.74635,1757.0,1756.9,1.13797]
[1745861482692,1.13795,1757.0,1756.9,2.76237]
[1745861483186,1.13795,1757.0,1756.9,5.97017]
[1745861484386,1.13795,1757.0,1756.8,0.8259]
[1745861484587,2.90057,1756.9,1756.8,0.8259]
[1745861484893,2.90057,1756.9,1756.8,6.80843]
[1745861485389,0.8509,1757.0,1756.9,1.13797]
[1745861485390,1.13794,1757.0,1756.9,1.13797]
[1745861485589,1.13794,1757.0,1756.9,2.77467]
[1745861487688,2.90844,1757.0,1756.9,2.77467]
[1745861489594,1.98666,1757.1,1757.0,1.1379]
[1745861489893,1.13781,1757.2,1757.1,1.13777]
[1745861491484,2.01413,1757.3,1757.2,1.13777]
[1745861491693,2.77785,1757.6,1757.5,1.13758]
[1745861491898,3.2078,1757.7,1757.6,1.13751]
[1745861492100,9.6803,1758.0,1757.6,3.2078]
[1745861492392,1.13733,1757.9,1757.8,1.13734]
[1745861492594,7.60981,1758.0,1757.9,1.13732]
[1745861492798,7.60981,1758.0,1757.9,2.77142]
[1745861493095,3.62681,1758.0,1757.9,2.77142]
[1745861495001,1.1372,1758.1,1758.0,1.13721]
[1745861495192,1.13719,1758.1,1758.0,1.6341]
[1745861495394,1.13719,1758.1,1758.0,2.77135]
[1745861495594,1.13719,1758.1,1758.0,1.6341]
[1745861496103,1.13719,1758.1,1758.0,2.77135]
[1745861496503,1.13719,1758.1,1758.0,1.6341]
[1745861496703,2.82889,1758.1,1758.0,2.77135]
[1745861497401,1.13719,1758.1,1758.0,2.77135]
[1745861497799,1.13717,1758.2,1758.1,1.13717]
[1745861498401,6.8118,1758.3,1758.2,1.13712]
[1745861498601,6.8118,1758.3,1758.2,2.81102]
[1745861498796,1.13706,1758.3,1758.2,2.81102]
[1745861499001,5.14634,1758.4,1758.3,1.13706]
[1745861499198,4.0093,1758.4,1758.3,1.6739]
[1745861499399,4.34479,1758.4,1758.3,1.6739]
[1745861500906,4.34479,1758.4,1758.1,0.8358]
[1745861500907,1.13712,1758.2,1758.1,0.8358]
[1745861501404,1.13712,1758.2,1758.1,2.5097]
[1745861501606,1.98452,1758.2,1758.1,2.5097]
[1745861502402,1.13725,1758.0,1757.9,4.7875]
[1745861502611,1.13725,1758.0,1757.9,6.5468]
[1745861502908,1.13725,1758.0,1757.9,7.68412]
[1745861504711,1.13724,1758.1,1758.0,1.1372]
[1745861505007,1.13724,1758.1,1758.0,6.8866]
[1745861505207,1.13724,1758.1,1758.0,2.5416]
[1745861505507,1.13724,1758.1,1758.0,3.67885]
[1745861507004,1.13724,1758.1,1758.0,6.88665]
[1745861508616,1.13724,1758.1,1758.0,5.7494]
[1745861508813,1.13724,1758.1,1758.0,6.88665]
[1745861509016,2.86884,1758.1,1758.0,6.88665]
[1745861509914,2.86884,1758.1,1758.0,4.9212]
[1745861510113,2.86884,1758.1,1758.0,2.85065]
[1745861510515,1.13724,1758.1,1758.0,2.85065]
[1745861511111,1.13712,1758.3,1758.2,1.13706]
[1745861511613,1.13712,1758.3,1758.2,2.78746]
[1745861512509,1.13712,1758.3,1758.2,1.6504]
[1745861512713,2.75792,1758.3,1758.2,1.6504]
[1745861513612,2.75792,1758.3,1758.2,2.78752]
[1745861513818,2.75792,1758.3,1758.2,1.6504]
[1745861515122,2.75792,1758.3,1758.2,2.78752]
[1745861515817,2.75792,1758.3,1758.2,1.6504]
[1745861516306,2.75792,1758.3,1758.2,2.78752]
[1745861516818,2.75792,1758.3,1758.2,1.6504]
[1745861517217,2.75792,1758.3,1758.2,2.78752]
[1745861517415,1.13732,1757.9,1757.8,44.0078]
[1745861517615,2.84314,1758.0,1757.6,4.0814]
[1745861517919,1.13734,1757.9,1757.7,1.13745]
[1745861518125,1.13734,1757.9,1757.8,1.98412]
[1745861518623,1.13734,1757.9,1757.8,3.72852]
[1745861519122,1.13734,1757.9,1757.8,6.93638]
[1745861519724,1.13734,1757.9,1757.8,2.5912]
[1745861519917,1.13734,1757.9,1757.8,2.88178]
[1745861520125,1.13734,1757.9,1757.8,1.7444]
[1745861520316,1.13734,1757.9,1757.8,2.88178]
[1745861521326,1.13734,1757.9,1757.8,1.7444]
[1745861521824,1.13738,1757.8,1757.7,0.8613]
[1745861522026,1.13745,1757.7,1757.6,3.7081]
[1745861522225,1.93515,1757.7,1757.6,3.7081]
[1745861522726,1.13743,1757.8,1757.7,1.13745]
[1745861522925,1.13737,1757.9,1757.8,1.13732]
[1745861523122,1.13729,1758.0,1757.9,1.13725]
[1745861523319,1.13729,1758.0,1757.9,2.79225]
[1745861523824,1.13729,1758.0,1757.9,6.00005]
[1745861524826,1.13724,1758.1,1758.0,1.13719]
[1745861525026,1.13724,1758.1,1758.0,3.67569]
[1745861527130,1.13716,1758.2,1758.1,1.13712]
[1745861527428,1.13716,1758.2,1758.1,3.69202]
[1745861531829,1.13716,1758.2,1758.1,6.89982]
[1745861534625,1.1371,1758.3,1758.2,1.13706]
[1745861534828,1.13692,1758.6,1758.5,1.13687]
[1745861535229,1.13692,1758.6,1758.5,3.70997]
[1745861535824,1.13692,1758.6,1758.5,3.71003]
[1745861536024,1.94912,1758.6,1758.5,3.71003]
[1745861536831,1.13692,1758.6,1758.5,3.71003]
[1745861538233,1.13685,1758.7,1758.6,1.13687]
[1745861538532,1.13685,1758.7,1758.6,2.76747]
[1745861538730,1.13685,1758.7,1758.6,5.97527]
[1745861539032,1.13685,1758.7,1758.6,2.76747]
[1745861539434,1.13687,1758.6,1758.5,2.00157]
[1745861539735,1.13687,1758.6,1758.5,3.63217]
[1745861541338,2.88225,1758.7,1758.6,1.13687]
[1745861541548,2.88225,1758.7,1758.6,2.89767]
[1745861542042,1.13685,1758.7,1758.6,2.89767]
[1745861542334,2.4793,1758.8,1758.7,1.1368]
[1745861542534,1.97107,1758.9,1758.8,1.13674]
[1745861542735,1.97107,1758.9,1758.8,4.34454]
[1745861543333,1.97107,1758.9,1758.8,1.13674]
[1745861543735,1.97107,1758.9,1758.8,2.89754]
[1745861550246,1.97107,1758.9,1758.8,4.55394]
[1745861550645,0.8344,1758.9,1758.8,4.55394]
[1745861551051,1.97107,1758.9,1758.8,4.55394]
[1745861552351,1.97107,1758.9,1758.7,1.13675]
[1745861552352,1.13682,1758.8,1758.7,1.13675]
[1745861552553,3.57762,1758.8,1758.7,1.13675]
[1745861553250,3.57762,1758.8,1758.7,4.34455]
[1745861553855,3.57762,1758.8,1758.7,6.10575]
[1745861559457,2.74582,1758.8,1758.7,6.10575]
[1745861561558,2.74582,1758.8,1758.7,2.89795]
[1745861564366,1.1368,1758.7,1758.6,3.2078]
[1745861564573,1.13693,1758.5,1758.4,2.83989]
[1745861564767,5.41107,1758.7,1758.2,5.93479]
[1745861564970,1.13712,1758.2,1758.1,4.34496]
[1745861565271,1.13711,1758.3,1758.2,1.13706]
[1745861565466,1.13711,1758.3,1758.2,2.83996]
[1745861565971,3.70592,1758.4,1758.3,1.13706]
[1745861566173,3.70592,1758.4,1758.3,6.07276]
[1745861566369,3.70592,1758.4,1758.3,2.86496]
[1745861567568,0.8182,1758.5,1758.4,1.13699]
[1745861567775,1.95513,1758.5,1758.4,3.70159]
[1745861567972,1.13691,1758.6,1758.4,2.5646]
[1745861568166,1.13691,1758.6,1758.5,2.86483]
[1745861568670,2.80831,1758.6,1758.5,2.86483]
[1745861568973,1.13691,1758.6,1758.5,2.86483]
[1745861569182,1.13691,1758.6,1758.5,6.07263]
[1745861569363,1.95535,1758.7,1758.6,1.13687]
[1745861569567,1.95535,1758.7,1758.6,2.77267]
[1745861570176,1.13678,1758.8,1758.7,1.13674]
[1745861570372,1.13678,1758.8,1758.7,2.77254]
[1745861571673,1.13687,1758.7,1758.6,1.13683]
[1745861571969,1.13679,1758.8,1758.7,1.13674]
[1745861572270,2.87969,1758.8,1758.7,1.13674]
[1745861575673,1.1368,1758.7,1758.6,1.6358]
[1745861576077,2.0203,1758.7,1758.6,2.77267]
[1745861577079,2.0203,1758.7,1758.6,5.98047]
[1745861578975,1.13693,1758.5,1758.4,5.18144]
[1745861579174,3.67992,1758.6,1758.5,1.13693]
[1745861579376,1.13692,1758.6,1758.5,2.90223]
[1745861580180,1.13684,1758.7,1758.6,1.13687]
[1745861580375,1.13684,1758.7,1758.6,2.90217]
[1745861580975,11.68613,1758.9,1758.8,1.13674]
[1745861580976,1.13672,1758.9,1758.8,1.13674]
[1745861581781,1.13672,1758.9,1758.8,2.85694]
[1745861582479,1.13672,1758.9,1758.8,1.7202]
[1745861582872,1.13674,1758.8,1758.7,1.9455]